[Event "Early-Titled-Tuesday-Blitz-October-24-2023"]
[Site "Chess.com"]
[Date "2023.10.24"]
[Round "1"]
[White "Arimin1329"]
[Black "Buzhizhebuguai"]
[Result "0-1"]
[WhiteElo "2315"]
[BlackElo "2632"]
[TimeControl "180+1"]
[EndTime "8:05:23 PDT"]
[Termination "Buzhizhebuguai won by resignation"]

1. Nf3 {[%clk 0:02:59.9]} 1... Nf6 {[%clk 0:02:55.9]} 2. d4 {[%clk 0:03:00.3]}
2... b6 {[%clk 0:02:53.4]} 3. g3 {[%clk 0:02:59.6]} 3... Bb7 {[%clk 0:02:53.4]}
4. Bg2 {[%clk 0:03:00.5]} 4... g6 {[%clk 0:02:53.3]} 5. O-O {[%clk 0:03:00.9]}
5... Bg7 {[%clk 0:02:52.5]} 6. b3 {[%clk 0:03:01.5]} 6... O-O {[%clk 0:02:50.8]}
7. Bb2 {[%clk 0:03:02.4]} 7... d6 {[%clk 0:02:48.1]} 8. Nbd2 {[%clk 0:03:01]}
8... Nbd7 {[%clk 0:02:46.6]} 9. Re1 {[%clk 0:02:56]} 9... c5 {[%clk 0:02:35]}
10. dxc5 {[%clk 0:02:53]} 10... bxc5 {[%clk 0:02:32.4]} 11. e4 {[%clk
0:02:48.6]} 11... Qc7 {[%clk 0:02:30]} 12. e5 {[%clk 0:02:42.4]} 12... Nd5
{[%clk 0:02:27.4]} 13. c4 {[%clk 0:02:31.6]} 13... Nb4 {[%clk 0:02:25.5]} 14.
exd6 {[%clk 0:02:31.1]} 14... exd6 {[%clk 0:02:26]} 15. Bxg7 {[%clk 0:02:29]}
15... Kxg7 {[%clk 0:02:26.9]} 16. Nb1 {[%clk 0:02:25.6]} 16... Nf6 {[%clk
0:02:23]} 17. Nc3 {[%clk 0:02:24.2]} 17... Rfe8 {[%clk 0:02:18.8]} 18. Rxe8
{[%clk 0:02:12.7]} 18... Nxe8 {[%clk 0:02:13.4]} 19. a3 {[%clk 0:02:07]} 19...
Nc6 {[%clk 0:02:12.8]} 20. Qd2 {[%clk 0:02:02.6]} 20... Rd8 {[%clk 0:02:09.1]}
21. Re1 {[%clk 0:01:53]} 21... Nf6 {[%clk 0:02:05.5]} 22. h4 {[%clk 0:01:43.3]}
22... a6 {[%clk 0:02:02.9]} 23. Qb2 {[%clk 0:01:31.4]} 23... Kg8 {[%clk
0:01:58.6]} 24. Ng5 {[%clk 0:01:26.7]} 24... Nd4 {[%clk 0:01:55.9]} 25. Nd5
{[%clk 0:01:15]} 25... Bxd5 {[%clk 0:01:51]} 26. cxd5 {[%clk 0:01:15.9]} 26...
Re8 {[%clk 0:01:38.3]} 27. Rd1 {[%clk 0:01:11.6]} 27... Re2 {[%clk 0:01:36.1]}
28. Qc3 {[%clk 0:01:04.7]} 28... Qe7 {[%clk 0:01:34.3]} 29. Kh2 {[%clk
0:00:59.7]} 29... Ng4+ {[%clk 0:01:30.6]} 30. Kg1 {[%clk 0:00:52.3]} 30... Rxf2
{[%clk 0:01:30.4]} 31. Rxd4 {[%clk 0:00:50.2]} 31... cxd4 {[%clk 0:01:28.7]} 32.
Qxd4 {[%clk 0:00:45.8]} 32... Qe1+ {[%clk 0:01:28.7]} 0-1

[Event "Early-Titled-Tuesday-Blitz-October-24-2023"]
[Site "Chess.com"]
[Date "2023.10.24"]
[Round "1"]
[White "kuanysh1981"]
[Black "LiemLe"]
[Result "0-1"]
[WhiteElo "2508"]
[BlackElo "2982"]
[TimeControl "180+1"]
[EndTime "8:05:25 PDT"]
[Termination "LiemLe won by resignation"]

1. d4 {[%clk 0:03:00.4]} 1... Nf6 {[%clk 0:02:59.6]} 2. Nf3 {[%clk 0:03:00.4]}
2... b6 {[%clk 0:02:57.7]} 3. g3 {[%clk 0:03:00.2]} 3... Bb7 {[%clk 0:02:56.5]}
4. Bg2 {[%clk 0:03:00.8]} 4... g6 {[%clk 0:02:54.4]} 5. O-O {[%clk 0:03:00.9]}
5... Bg7 {[%clk 0:02:54.5]} 6. c4 {[%clk 0:03:01.3]} 6... O-O {[%clk 0:02:54.6]}
7. Nc3 {[%clk 0:03:01.7]} 7... Ne4 {[%clk 0:02:55.2]} 8. Qd3 {[%clk 0:03:00.2]}
8... Nxc3 {[%clk 0:02:53.5]} 9. bxc3 {[%clk 0:03:01.1]} 9... Nc6 {[%clk
0:02:43.8]} 10. e4 {[%clk 0:03:00.5]} 10... e5 {[%clk 0:02:41.1]} 11. Be3 {[%clk
0:03:00.2]} 11... d6 {[%clk 0:02:38.9]} 12. Nd2 {[%clk 0:02:59.7]} 12... Qe7
{[%clk 0:02:20.6]} 13. f4 {[%clk 0:02:58.2]} 13... Rad8 {[%clk 0:01:57.3]} 14.
h4 {[%clk 0:02:46.5]} 14... Rfe8 {[%clk 0:01:53.4]} 15. fxe5 {[%clk 0:02:37.2]}
15... dxe5 {[%clk 0:01:52.9]} 16. d5 {[%clk 0:02:38.1]} 16... Nb8 {[%clk
0:01:50.9]} 17. h5 {[%clk 0:02:34.9]} 17... Nd7 {[%clk 0:01:47.4]} 18. Nf3
{[%clk 0:02:25.6]} 18... Nc5 {[%clk 0:01:40.4]} 19. Qc2 {[%clk 0:02:25.5]} 19...
Ba6 {[%clk 0:01:39.1]} 20. Nd2 {[%clk 0:02:21.7]} 20... Rf8 {[%clk 0:01:35.9]}
21. Rf2 {[%clk 0:02:17.9]} 21... Bc8 {[%clk 0:01:33.7]} 22. Raf1 {[%clk
0:02:16.3]} 22... f5 {[%clk 0:01:31.8]} 23. hxg6 {[%clk 0:02:10.9]} 23... hxg6
{[%clk 0:01:32.7]} 24. exf5 {[%clk 0:02:10.9]} 24... gxf5 {[%clk 0:01:28.8]} 25.
Nf3 {[%clk 0:02:11]} 25... Ne4 {[%clk 0:01:28]} 26. Nh4 {[%clk 0:02:06.3]} 26...
Nxf2 {[%clk 0:01:23.1]} 27. Bxf2 {[%clk 0:01:57.9]} 27... Rd6 {[%clk 0:01:16.6]}
28. c5 {[%clk 0:01:56.7]} 28... Rh6 {[%clk 0:01:15.7]} 29. d6 {[%clk 0:01:56.9]}
29... cxd6 {[%clk 0:01:16.4]} 30. cxd6 {[%clk 0:01:54.5]} 30... Qxd6 {[%clk
0:01:16.2]} 31. Rd1 {[%clk 0:01:52]} 31... Qc7 {[%clk 0:01:14]} 32. Bd5+ {[%clk
0:01:50.4]} 32... Kh8 {[%clk 0:01:12.8]} 33. Bb3 {[%clk 0:01:48.4]} 33... e4
{[%clk 0:01:04.9]} 34. Qd2 {[%clk 0:01:42.7]} 34... f4 {[%clk 0:01:02.7]} 35.
Qd5 {[%clk 0:01:33.4]} 35... fxg3 {[%clk 0:00:52.1]} 36. Bd4 {[%clk 0:01:31.3]}
36... Rxh4 {[%clk 0:00:51.2]} 37. Qg5 {[%clk 0:01:26.1]} 37... Rh7 {[%clk
0:00:50.5]} 0-1

[Event "Early-Titled-Tuesday-Blitz-October-24-2023"]
[Site "Chess.com"]
[Date "2023.10.24"]
[Round "1"]
[White "Mr_Lion22"]
[Black "FGHSMN"]
[Result "0-1"]
[WhiteElo "2491"]
[BlackElo "2902"]
[TimeControl "180+1"]
[EndTime "8:05:31 PDT"]
[Termination "FGHSMN won by resignation"]

1. d4 {[%clk 0:01:45.7]} 1... Nf6 {[%clk 0:02:56.1]} 2. c4 {[%clk 0:01:46.5]}
2... d6 {[%clk 0:02:55.5]} 3. Nc3 {[%clk 0:01:45.2]} 3... Bf5 {[%clk 0:02:55]}
4. Nf3 {[%clk 0:01:45]} 4... g6 {[%clk 0:02:54.7]} 5. Nh4 {[%clk 0:01:45.2]}
5... Bd7 {[%clk 0:02:54.7]} 6. e4 {[%clk 0:01:46]} 6... e5 {[%clk 0:02:55.2]} 7.
Nf3 {[%clk 0:01:46.3]} 7... exd4 {[%clk 0:02:55.5]} 8. Nxd4 {[%clk 0:01:47.2]}
8... Bg7 {[%clk 0:02:56.3]} 9. Be2 {[%clk 0:01:46.6]} 9... O-O {[%clk
0:02:56.9]} 10. O-O {[%clk 0:01:47.3]} 10... Nc6 {[%clk 0:02:57.6]} 11. Be3
{[%clk 0:01:46.2]} 11... Re8 {[%clk 0:02:57.9]} 12. f3 {[%clk 0:01:46.2]} 12...
Nh5 {[%clk 0:02:58.2]} 13. f4 {[%clk 0:01:36.9]} 13... Nf6 {[%clk 0:02:52.7]}
14. Bf3 {[%clk 0:01:18]} 14... Na5 {[%clk 0:02:48.3]} 15. Qd3 {[%clk 0:00:57.6]}
15... Ng4 {[%clk 0:02:43.1]} 16. Bxg4 {[%clk 0:00:53.9]} 16... Bxg4 {[%clk
0:02:44]} 17. b4 {[%clk 0:00:54.5]} 17... Nc6 {[%clk 0:02:42.9]} 18. Nd5 {[%clk
0:00:55.3]} 18... f5 {[%clk 0:02:36.6]} 19. exf5 {[%clk 0:00:52.8]} 19... Rxe3
{[%clk 0:02:33.6]} 20. Nxe3 {[%clk 0:00:41.9]} 20... Bxd4 {[%clk 0:02:33.4]} 21.
b5 {[%clk 0:00:37.3]} 21... Bxf5 {[%clk 0:02:32.1]} 22. Qd2 {[%clk 0:00:32.1]}
22... Bxa1 {[%clk 0:02:10.8]} 23. bxc6 {[%clk 0:00:32.3]} 23... Qf6 {[%clk
0:02:04.6]} 24. cxb7 {[%clk 0:00:28.3]} 24... Rb8 {[%clk 0:02:05.1]} 25. Nxf5
{[%clk 0:00:12.5]} 25... gxf5 {[%clk 0:02:06]} 26. Qb4 {[%clk 0:00:11.9]} 26...
Bd4+ {[%clk 0:02:04.5]} 27. Kh1 {[%clk 0:00:11.7]} 27... Bb6 {[%clk 0:02:04.1]}
28. Qa4 {[%clk 0:00:11.8]} 28... Rxb7 {[%clk 0:02:01.1]} 29. Qe8+ {[%clk
0:00:12]} 29... Qf8 {[%clk 0:02:00.4]} 30. Qc6 {[%clk 0:00:11.5]} 30... Rb8
{[%clk 0:02:00.3]} 31. Rf3 {[%clk 0:00:12.2]} 31... Re8 {[%clk 0:01:59.2]} 32.
Rg3+ {[%clk 0:00:11.2]} 32... Kh8 {[%clk 0:01:59.4]} 33. h3 {[%clk 0:00:12]}
33... Re1+ {[%clk 0:01:59]} 0-1

[Event "Early-Titled-Tuesday-Blitz-October-24-2023"]
[Site "Chess.com"]
[Date "2023.10.24"]
[Round "1"]
[White "Khromkin"]
[Black "Beca95"]
[Result "0-1"]
[WhiteElo "2500"]
[BlackElo "2937"]
[TimeControl "180+1"]
[EndTime "8:05:35 PDT"]
[Termination "Beca95 won by checkmate"]

1. d4 {[%clk 0:03:00.9]} 1... d5 {[%clk 0:02:56.9]} 2. c4 {[%clk 0:02:55.9]}
2... dxc4 {[%clk 0:02:57.8]} 3. Nf3 {[%clk 0:02:55.2]} 3... Nf6 {[%clk 0:02:56]}
4. e3 {[%clk 0:02:55.3]} 4... e6 {[%clk 0:02:55.7]} 5. Bxc4 {[%clk 0:02:55.4]}
5... a6 {[%clk 0:02:56.2]} 6. O-O {[%clk 0:02:55.4]} 6... c5 {[%clk 0:02:55.5]}
7. Bd3 {[%clk 0:02:55.6]} 7... Nc6 {[%clk 0:02:54.4]} 8. Qe2 {[%clk 0:02:50.4]}
8... cxd4 {[%clk 0:02:44.8]} 9. exd4 {[%clk 0:02:50.3]} 9... Be7 {[%clk
0:02:45.1]} 10. Nc3 {[%clk 0:02:41.1]} 10... Nb4 {[%clk 0:02:37.4]} 11. Bb1
{[%clk 0:02:35.2]} 11... Bd7 {[%clk 0:02:37.2]} 12. Rd1 {[%clk 0:02:22.3]} 12...
Bc6 {[%clk 0:02:35.7]} 13. Ne5 {[%clk 0:02:21]} 13... Rc8 {[%clk 0:02:35.3]} 14.
a3 {[%clk 0:02:14.9]} 14... Nbd5 {[%clk 0:02:34.9]} 15. Ne4 {[%clk 0:02:15.3]}
15... Nxe4 {[%clk 0:02:33.5]} 16. Bxe4 {[%clk 0:02:13.9]} 16... O-O {[%clk
0:02:28.3]} 17. Rd3 {[%clk 0:02:08.4]} 17... f5 {[%clk 0:02:24.8]} 18. Bf3
{[%clk 0:02:07.6]} 18... Bf6 {[%clk 0:02:23.7]} 19. Bd2 {[%clk 0:02:06.4]} 19...
Bxe5 {[%clk 0:02:22.8]} 20. Qxe5 {[%clk 0:02:05.2]} 20... Qd7 {[%clk 0:02:23.1]}
21. Re1 {[%clk 0:02:03.6]} 21... Rfe8 {[%clk 0:02:22.7]} 22. Bh5 {[%clk
0:01:49.4]} 22... g6 {[%clk 0:02:18.9]} 23. Rg3 {[%clk 0:01:27.1]} 23... Qg7
{[%clk 0:02:18]} 24. Qe2 {[%clk 0:01:27.5]} 24... Nf6 {[%clk 0:02:15.2]} 25. Bf3
{[%clk 0:01:23.4]} 25... Bxf3 {[%clk 0:02:15.2]} 26. Qxf3 {[%clk 0:01:23.8]}
26... Nd5 {[%clk 0:01:51.7]} 27. Bf4 {[%clk 0:01:09.6]} 27... Qxd4 {[%clk
0:01:47.4]} 28. Be5 {[%clk 0:01:08.9]} 28... Qd2 {[%clk 0:01:47.2]} 29. Rf1
{[%clk 0:00:19.1]} 29... Rc1 {[%clk 0:01:45.5]} 30. Qh5 {[%clk 0:00:19.2]} 30...
Rxf1+ {[%clk 0:01:42.4]} 31. Kxf1 {[%clk 0:00:19.7]} 31... Qc1+ {[%clk
0:01:42.4]} 32. Ke2 {[%clk 0:00:19.8]} 32... Qc2+ {[%clk 0:01:42.4]} 33. Kf1
{[%clk 0:00:19.8]} 33... f4 {[%clk 0:01:42.9]} 34. Qh6 {[%clk 0:00:15.5]} 34...
Qd1# {[%clk 0:01:40.7]} 0-1

[Event "Early-Titled-Tuesday-Blitz-October-24-2023"]
[Site "Chess.com"]
[Date "2023.10.24"]
[Round "1"]
[White "js20000"]
[Black "chess_blitz00"]
[Result "1-0"]
[WhiteElo "2915"]
[BlackElo "2493"]
[TimeControl "180+1"]
[EndTime "8:05:39 PDT"]
[Termination "js20000 won on time"]

1. Nf3 {[%clk 0:03:00.9]} 1... Nf6 {[%clk 0:02:59.8]} 2. b3 {[%clk 0:03:01]}
2... g6 {[%clk 0:02:55.6]} 3. Bb2 {[%clk 0:03:01.2]} 3... Bg7 {[%clk 0:02:56.5]}
4. g3 {[%clk 0:03:00.6]} 4... O-O {[%clk 0:02:56.5]} 5. Bg2 {[%clk 0:03:01.2]}
5... d6 {[%clk 0:02:56.5]} 6. d4 {[%clk 0:03:00.5]} 6... Nbd7 {[%clk 0:02:53.3]}
7. O-O {[%clk 0:03:00.8]} 7... e5 {[%clk 0:02:45.3]} 8. dxe5 {[%clk 0:03:00.9]}
8... dxe5 {[%clk 0:02:45.5]} 9. Nxe5 {[%clk 0:02:56.5]} 9... Ng4 {[%clk
0:02:45.7]} 10. Nc4 {[%clk 0:02:52.9]} 10... Bxb2 {[%clk 0:02:26.2]} 11. Nxb2
{[%clk 0:02:53.8]} 11... Qf6 {[%clk 0:02:25.9]} 12. c3 {[%clk 0:02:53.1]} 12...
Nc5 {[%clk 0:02:16.2]} 13. Qd4 {[%clk 0:02:50.7]} 13... Qe7 {[%clk 0:02:03.9]}
14. Nd3 {[%clk 0:02:49.9]} 14... Nxd3 {[%clk 0:01:51.3]} 15. exd3 {[%clk
0:02:48.1]} 15... Rd8 {[%clk 0:01:51.4]} 16. Qe4 {[%clk 0:02:47.7]} 16... Qxe4
{[%clk 0:01:26.6]} 17. dxe4 {[%clk 0:02:47.2]} 17... Be6 {[%clk 0:01:15.5]} 18.
Na3 {[%clk 0:02:33.2]} 18... Rd2 {[%clk 0:01:11]} 19. Nb5 {[%clk 0:02:32.9]}
19... c6 {[%clk 0:00:34.5]} 20. Nc7 {[%clk 0:02:32.6]} 20... Rad8 {[%clk
0:00:32.7]} 21. Nxe6 {[%clk 0:02:32.9]} 21... fxe6 {[%clk 0:00:33.6]} 22. Bh3
{[%clk 0:02:33.3]} 22... h5 {[%clk 0:00:26.4]} 23. f3 {[%clk 0:02:33.3]} 23...
Nxh2 {[%clk 0:00:17.7]} 24. Bxe6+ {[%clk 0:02:31.5]} 24... Kg7 {[%clk
0:00:17.6]} 25. Rf2 {[%clk 0:02:31.8]} 25... Rxf2 {[%clk 0:00:17.3]} 26. Kxf2
{[%clk 0:02:32.7]} 26... Rd2+ {[%clk 0:00:17]} 27. Ke3 {[%clk 0:02:32]} 27...
Rg2 {[%clk 0:00:15.6]} 28. Rh1 {[%clk 0:02:30.2]} 28... g5 {[%clk 0:00:10.3]}
29. a4 {[%clk 0:02:18.5]} 29... g4 {[%clk 0:00:07.9]} 30. fxg4 {[%clk
0:02:18.6]} 30... hxg4 {[%clk 0:00:03.6]} 31. Kf4 {[%clk 0:02:17.1]} 31... Rf2+
{[%clk 0:00:02.9]} 32. Ke5 {[%clk 0:02:17.2]} 32... Kg6 {[%clk 0:00:02.9]} 33.
Bf5+ {[%clk 0:02:16]} 33... Kg5 {[%clk 0:00:03.4]} 34. Kd6 {[%clk 0:02:14.8]}
34... Nf3 {[%clk 0:00:04]} 35. Rh8 {[%clk 0:02:13.8]} 35... Rd2+ {[%clk
0:00:04.5]} 36. Kc7 {[%clk 0:02:13]} 36... Ne5 {[%clk 0:00:04.1]} 37. Rg8+
{[%clk 0:02:13]} 37... Kf6 {[%clk 0:00:04.2]} 38. Bxg4 {[%clk 0:02:12.2]} 38...
Kf7 {[%clk 0:00:03.5]} 39. Rg5 {[%clk 0:02:11]} 39... Ng6 {[%clk 0:00:01.9]} 40.
Bh5 {[%clk 0:02:10.8]} 40... Ke7 {[%clk 0:00:01]} 41. Rxg6 {[%clk 0:02:10.8]}
41... Rd7+ {[%clk 0:00:01.4]} 42. Kb8 {[%clk 0:02:11.2]} 42... Rd8+ {[%clk
0:00:01.7]} 43. Kxa7 {[%clk 0:02:11.4]} 43... Rd3 {[%clk 0:00:01.9]} 44. Rg7+
{[%clk 0:02:11.5]} 1-0

[Event "Early-Titled-Tuesday-Blitz-October-24-2023"]
[Site "Chess.com"]
[Date "2023.10.24"]
[Round "1"]
[White "falzehope0"]
[Black "KNCP_719"]
[Result "1-0"]
[WhiteElo "2340"]
[BlackElo "2603"]
[TimeControl "180+1"]
[EndTime "8:05:51 PDT"]
[Termination "falzehope0 won on time"]

1. d4 {[%clk 0:02:56.1]} 1... d5 {[%clk 0:02:58.9]} 2. e3 {[%clk 0:02:51.6]}
2... Nf6 {[%clk 0:02:58.4]} 3. Bd3 {[%clk 0:02:50.8]} 3... c5 {[%clk 0:02:58]}
4. c3 {[%clk 0:02:50.9]} 4... Nc6 {[%clk 0:02:56.9]} 5. f4 {[%clk 0:02:50.5]}
5... Bg4 {[%clk 0:02:44.7]} 6. Ne2 {[%clk 0:02:49.4]} 6... e6 {[%clk 0:02:40.7]}
7. Nd2 {[%clk 0:02:48.2]} 7... cxd4 {[%clk 0:02:25.9]} 8. exd4 {[%clk
0:02:47.5]} 8... Bd6 {[%clk 0:02:24.4]} 9. O-O {[%clk 0:02:44.6]} 9... O-O
{[%clk 0:02:21.9]} 10. Nf3 {[%clk 0:02:43.5]} 10... Ne4 {[%clk 0:02:15.7]} 11.
Bxe4 {[%clk 0:02:33.6]} 11... dxe4 {[%clk 0:02:15.9]} 12. Ng5 {[%clk 0:02:33.7]}
12... Bf5 {[%clk 0:01:59.2]} 13. Ng3 {[%clk 0:02:32.7]} 13... Be7 {[%clk
0:01:27.6]} 14. N5xe4 {[%clk 0:02:31.2]} 14... Rc8 {[%clk 0:01:25.7]} 15. Qe2
{[%clk 0:02:28.6]} 15... Bg6 {[%clk 0:01:22.5]} 16. f5 {[%clk 0:02:21.1]} 16...
exf5 {[%clk 0:01:22.7]} 17. Nxf5 {[%clk 0:02:21]} 17... Re8 {[%clk 0:01:15.4]}
18. Qg4 {[%clk 0:02:12.8]} 18... Bf8 {[%clk 0:01:14.6]} 19. Bg5 {[%clk
0:01:53.4]} 19... Qd5 {[%clk 0:01:14]} 20. Neg3 {[%clk 0:01:46.8]} 20... Qb5
{[%clk 0:00:28.8]} 21. Rf2 {[%clk 0:01:43.2]} 21... Na5 {[%clk 0:00:16.2]} 22.
h4 {[%clk 0:01:32.2]} 22... h5 {[%clk 0:00:05.1]} 23. Nxh5 {[%clk 0:01:31]}
23... Bxh5 {[%clk 0:00:05.8]} 24. Qxh5 {[%clk 0:01:31.9]} 24... g6 {[%clk
0:00:03.5]} 25. Nh6+ {[%clk 0:01:31.8]} 25... Bxh6 {[%clk 0:00:03.6]} 26. Qxh6
{[%clk 0:01:31.9]} 26... Re6 {[%clk 0:00:01.8]} 27. Raf1 {[%clk 0:01:28.6]}
27... Rf8 {[%clk 0:00:01.2]} 28. Rf6 {[%clk 0:01:20.5]} 1-0

[Event "Early-Titled-Tuesday-Blitz-October-24-2023"]
[Site "Chess.com"]
[Date "2023.10.24"]
[Round "1"]
[White "MagnusCarlsen"]
[Black "masterofpuppets2"]
[Result "1-0"]
[WhiteElo "3266"]
[BlackElo "2522"]
[TimeControl "180+1"]
[EndTime "8:05:53 PDT"]
[Termination "MagnusCarlsen won by resignation"]

1. f4 {[%clk 0:02:58.5]} 1... d5 {[%clk 0:02:55.3]} 2. b3 {[%clk 0:02:58.7]}
2... Nf6 {[%clk 0:02:54.4]} 3. Bb2 {[%clk 0:02:59]} 3... g6 {[%clk 0:02:54.5]}
4. g3 {[%clk 0:02:58.1]} 4... Bg7 {[%clk 0:02:54.6]} 5. Bg2 {[%clk 0:02:58.9]}
5... O-O {[%clk 0:02:54.9]} 6. Nf3 {[%clk 0:02:59.6]} 6... c5 {[%clk 0:02:54.9]}
7. O-O {[%clk 0:03:00.4]} 7... d4 {[%clk 0:02:51.7]} 8. Ne5 {[%clk 0:02:53]}
8... Nd5 {[%clk 0:02:48.8]} 9. e4 {[%clk 0:02:46.7]} 9... dxe3 {[%clk 0:02:43]}
10. c4 {[%clk 0:02:46.6]} 10... Nb4 {[%clk 0:02:32.5]} 11. a3 {[%clk 0:02:46.4]}
11... e2 {[%clk 0:02:28.8]} 12. Qxe2 {[%clk 0:02:45.7]} 12... Nc2 {[%clk
0:02:29.3]} 13. Ra2 {[%clk 0:02:45.4]} 13... Nd4 {[%clk 0:02:28.6]} 14. Qf2
{[%clk 0:02:45]} 14... Nxb3 {[%clk 0:02:25.8]} 15. Nc3 {[%clk 0:02:44.2]} 15...
Nd4 {[%clk 0:02:00.7]} 16. Ne4 {[%clk 0:02:41.2]} 16... Qc7 {[%clk 0:01:51.1]}
17. Nxc5 {[%clk 0:02:40.2]} 17... Qxc5 {[%clk 0:01:44.3]} 18. Bxd4 {[%clk
0:02:39.5]} 18... Qc7 {[%clk 0:01:44.4]} 19. Rb2 {[%clk 0:02:39.6]} 19... Nd7
{[%clk 0:01:37.2]} 20. Re1 {[%clk 0:02:38.2]} 20... Nf6 {[%clk 0:01:32.1]} 21.
h3 {[%clk 0:02:36.9]} 21... Rd8 {[%clk 0:01:27.5]} 22. Bc3 {[%clk 0:02:36.8]}
22... a6 {[%clk 0:01:19.3]} 23. Qb6 {[%clk 0:02:35]} 23... Qxb6+ {[%clk
0:01:02.6]} 24. Rxb6 {[%clk 0:02:35]} 24... Nd7 {[%clk 0:01:03.1]} 25. Rb2
{[%clk 0:02:35]} 25... Nc5 {[%clk 0:00:58]} 26. Ba5 {[%clk 0:02:25.9]} 26... Re8
{[%clk 0:00:45.6]} 27. Re3 {[%clk 0:02:21.9]} 27... Bxe5 {[%clk 0:00:27.4]} 28.
fxe5 {[%clk 0:02:21.7]} 28... Be6 {[%clk 0:00:22.2]} 29. d4 {[%clk 0:02:20.6]}
29... Na4 {[%clk 0:00:20.5]} 30. Rb4 {[%clk 0:02:18.9]} 30... b5 {[%clk
0:00:14.4]} 31. d5 {[%clk 0:02:10.2]} 31... Bd7 {[%clk 0:00:11.9]} 32. e6 {[%clk
0:02:09.5]} 32... Bc8 {[%clk 0:00:11.3]} 33. d6 {[%clk 0:02:05.7]} 33... Bxe6
{[%clk 0:00:10.8]} 34. Bxa8 {[%clk 0:02:05.1]} 34... Rxa8 {[%clk 0:00:10.9]} 35.
cxb5 {[%clk 0:02:01.5]} 35... axb5 {[%clk 0:00:09.6]} 36. dxe7 {[%clk
0:01:58.1]} 36... Re8 {[%clk 0:00:08.1]} 37. Bd8 {[%clk 0:01:53.9]} 37... Nc5
{[%clk 0:00:04.4]} 38. Rxb5 {[%clk 0:01:54.2]} 38... Nd7 {[%clk 0:00:03.8]} 39.
a4 {[%clk 0:01:54]} 39... Kg7 {[%clk 0:00:02.1]} 40. a5 {[%clk 0:01:54.1]} 40...
Kf6 {[%clk 0:00:02.6]} 41. a6 {[%clk 0:01:54]} 41... Bc4 {[%clk 0:00:02.2]} 42.
a7 {[%clk 0:01:52.9]} 42... Bxb5 {[%clk 0:00:02.1]} 43. a8=Q {[%clk 0:01:53.2]}
1-0

[Event "Early-Titled-Tuesday-Blitz-October-24-2023"]
[Site "Chess.com"]
[Date "2023.10.24"]
[Round "1"]
[White "karinachess1"]
[Black "Treasurechess777"]
[Result "1-0"]
[WhiteElo "2639"]
[BlackElo "2324"]
[TimeControl "180+1"]
[EndTime "8:05:56 PDT"]
[Termination "karinachess1 won by resignation"]

1. d4 {[%clk 0:03:00.9]} 1... Nf6 {[%clk 0:02:16.5]} 2. c4 {[%clk 0:03:00.6]}
2... e6 {[%clk 0:02:15.3]} 3. Nc3 {[%clk 0:03:00.4]} 3... d5 {[%clk 0:02:16.2]}
4. cxd5 {[%clk 0:02:59.4]} 4... exd5 {[%clk 0:02:17.1]} 5. Bg5 {[%clk
0:02:59.7]} 5... c6 {[%clk 0:02:18]} 6. e3 {[%clk 0:02:59.6]} 6... Bd6 {[%clk
0:02:18.7]} 7. Bd3 {[%clk 0:02:58.2]} 7... O-O {[%clk 0:02:19.3]} 8. Nf3 {[%clk
0:02:55.7]} 8... Bg4 {[%clk 0:02:17.2]} 9. Qc2 {[%clk 0:02:54.2]} 9... h6 {[%clk
0:02:16.2]} 10. Bh4 {[%clk 0:02:53.4]} 10... Bxf3 {[%clk 0:02:15.6]} 11. gxf3
{[%clk 0:02:53.4]} 11... Nbd7 {[%clk 0:02:16.2]} 12. f4 {[%clk 0:02:46.5]} 12...
Re8 {[%clk 0:02:14.9]} 13. O-O-O {[%clk 0:02:40.5]} 13... c5 {[%clk 0:02:14.9]}
14. dxc5 {[%clk 0:02:40.6]} 14... Bxc5 {[%clk 0:02:06.2]} 15. Bf5 {[%clk
0:02:22.3]} 15... d4 {[%clk 0:01:56.4]} 16. Ne4 {[%clk 0:02:07.4]} 16... Be7
{[%clk 0:01:50.1]} 17. Rxd4 {[%clk 0:01:54]} 17... Rc8 {[%clk 0:01:37.4]} 18.
Nc3 {[%clk 0:01:50]} 18... Qa5 {[%clk 0:01:16.6]} 19. Kb1 {[%clk 0:01:04.6]}
19... Rc7 {[%clk 0:00:50.6]} 20. Rhd1 {[%clk 0:01:00.9]} 20... Nb6 {[%clk
0:00:45.6]} 21. Bd3 {[%clk 0:00:42.8]} 21... Nfd5 {[%clk 0:00:42.2]} 22. Bxe7
{[%clk 0:00:39]} 22... Nxc3+ {[%clk 0:00:35.5]} 23. bxc3 {[%clk 0:00:39.2]}
23... Rexe7 {[%clk 0:00:33.9]} 24. Rd8+ {[%clk 0:00:35.9]} 1-0

[Event "Early-Titled-Tuesday-Blitz-October-24-2023"]
[Site "Chess.com"]
[Date "2023.10.24"]
[Round "1"]
[White "WFM_Sara_Adel"]
[Black "brm72"]
[Result "1-0"]
[WhiteElo "2192"]
[BlackElo "2537"]
[TimeControl "180+1"]
[EndTime "8:05:57 PDT"]
[Termination "WFM_Sara_Adel won by checkmate"]

1. e4 {[%clk 0:02:56.3]} 1... c5 {[%clk 0:02:59.6]} 2. Nc3 {[%clk 0:02:56.1]}
2... d6 {[%clk 0:02:58.7]} 3. f4 {[%clk 0:02:57]} 3... g6 {[%clk 0:02:56.6]} 4.
Nf3 {[%clk 0:02:57.4]} 4... Bg7 {[%clk 0:02:56.9]} 5. Bc4 {[%clk 0:02:58]} 5...
Nc6 {[%clk 0:02:56.4]} 6. O-O {[%clk 0:02:58.2]} 6... e6 {[%clk 0:02:56.2]} 7.
d3 {[%clk 0:02:58.1]} 7... Nge7 {[%clk 0:02:56]} 8. Qe1 {[%clk 0:02:56.4]} 8...
O-O {[%clk 0:02:54.9]} 9. Qh4 {[%clk 0:02:51.4]} 9... d5 {[%clk 0:02:53.3]} 10.
Bb3 {[%clk 0:02:50.7]} 10... Nd4 {[%clk 0:02:48.2]} 11. f5 {[%clk 0:02:45.9]}
11... Nxf3+ {[%clk 0:02:42.7]} 12. Rxf3 {[%clk 0:02:46.6]} 12... exf5 {[%clk
0:02:40.2]} 13. Bg5 {[%clk 0:02:40.9]} 13... f6 {[%clk 0:02:31.7]} 14. Nxd5
{[%clk 0:02:39.2]} 14... Nxd5 {[%clk 0:02:28.9]} 15. Bxd5+ {[%clk 0:02:37.5]}
15... Kh8 {[%clk 0:02:28.2]} 16. Bh6 {[%clk 0:02:13]} 16... fxe4 {[%clk
0:02:25.2]} 17. dxe4 {[%clk 0:02:03.2]} 17... f5 {[%clk 0:01:56.9]} 18. Bg5
{[%clk 0:02:01.8]} 18... Bf6 {[%clk 0:01:31.4]} 19. Bxf6+ {[%clk 0:01:43.9]}
19... Qxf6 {[%clk 0:01:32.3]} 20. Qxf6+ {[%clk 0:01:43.5]} 20... Rxf6 {[%clk
0:01:33.2]} 21. e5 {[%clk 0:01:44.3]} 21... Rf8 {[%clk 0:01:30.6]} 22. e6 {[%clk
0:01:44.6]} 22... Re8 {[%clk 0:01:28.1]} 23. Re3 {[%clk 0:01:43.3]} 23... Kg7
{[%clk 0:01:26.8]} 24. g4 {[%clk 0:01:39.7]} 24... Kf6 {[%clk 0:01:21]} 25. e7
{[%clk 0:01:25.6]} 25... Rxe7 {[%clk 0:01:19]} 26. g5+ {[%clk 0:01:24.9]} 26...
Kxg5 {[%clk 0:01:18.1]} 27. Rxe7 {[%clk 0:01:24.7]} 27... Rb8 {[%clk 0:01:15.7]}
28. Rae1 {[%clk 0:01:20.5]} 28... h5 {[%clk 0:01:14.2]} 29. Rh7 {[%clk
0:01:20.1]} 29... b5 {[%clk 0:01:13.9]} 30. Ree7 {[%clk 0:01:17.1]} 30... f4
{[%clk 0:01:12.8]} 31. Kg2 {[%clk 0:01:08.7]} 31... Bf5 {[%clk 0:01:11.2]} 32.
Re5 {[%clk 0:01:03.9]} 32... a5 {[%clk 0:01:06.2]} 33. Rf7 {[%clk 0:01:01.6]}
33... Kh6 {[%clk 0:01:00.7]} 34. Be4 {[%clk 0:01:01.1]} 34... Bxe4+ {[%clk
0:00:57.4]} 35. Rxe4 {[%clk 0:01:00.4]} 35... Rd8 {[%clk 0:00:58]} 36. h4 {[%clk
0:00:56.4]} 36... Rd2+ {[%clk 0:00:57.4]} 37. Kf3 {[%clk 0:00:56.5]} 37... Rxc2
{[%clk 0:00:56.1]} 38. Ree7 {[%clk 0:00:56.4]} 38... g5 {[%clk 0:00:55.1]} 39.
Rf6# {[%clk 0:00:55.7]} 1-0